fUST/lending_fUST_20250620
["ID","MTS","AMOUNT","RATE_DAILY","PERIOD"]
[366747021,1750429840278,-460.0,0.00020453,2]
[366747023,1750429840287,-983.24,0.00020453,2]
[366747025,1750429840297,-460.0,0.00020453,2]
[366747027,1750429840306,-460.0,0.00020453,2]
[366747029,1750429840316,-460.0,0.00020453,2]
[366747031,1750429840326,-229.24272974,0.00020453,2]
[366747033,1750429840336,-2054.75,0.00020453,2]
[366747035,1750429840346,-2983.54,0.00020454,2]
[366747037,1750429840356,-460.0,0.00020454,2]
[366747039,1750429840365,-460.0,0.00020454,2]
[366747041,1750429840375,-533.14,0.00020454,2]
[366747043,1750429840385,-460.0,0.00020454,2]
[366747045,1750429840395,-460.0,0.00020454,2]
[366747047,1750429840404,-734.26,0.00020454,2]
[366747049,1750429840415,-460.0,0.00020454,2]
[366747051,1750429840425,-460.0,0.00020454,2]
[366747053,1750429840435,-460.0,0.00020454,2]
[366747055,1750429840444,-794.56,0.00020454,2]
[366747057,1750429840454,-460.0,0.00020454,2]
[366747059,1750429840463,-460.0,0.00020454,2]
[366747061,1750429840473,-460.0,0.00020454,2]
[366747063,1750429840483,-699.95,0.00020454,2]
[366747065,1750429840492,-460.0,0.00020455,2]
[366747067,1750429840502,-460.0,0.00020455,2]
[366747069,1750429840512,-460.0,0.00020455,2]
[366747071,1750429840521,-531.7156461,0.00020455,2]
[366747073,1750429840530,-460.0,0.00020455,2]
[366747075,1750429840540,-460.0,0.00020455,2]
[366747077,1750429840549,-460.0,0.00020455,2]
[366747079,1750429840559,-460.0,0.00020455,2]
[366747081,1750429840570,-460.0,0.00020455,2]
[366747083,1750429840580,-460.0,0.00020455,2]
[366747085,1750429840589,-1131.52,0.00020455,2]
[366747086,1750429840598,-460.0,0.00020455,2]
[366747088,1750429840608,-460.0,0.00020455,2]
[366747090,1750429840618,-460.0,0.00020455,2]
[366747092,1750429840627,-546.70387784,0.00020455,2]
[366747095,1750429840637,-460.0,0.00020455,2]
[366747096,1750429840647,-381.90907854,0.00020455,2]
[366747099,1750429840657,-460.0,0.00020455,2]
[366747100,1750429840668,-460.0,0.00020455,2]
[366747103,1750429840677,-533.95101458,0.00020455,2]
[366747104,1750429840687,-460.0,0.00020455,2]
[366747106,1750429840697,-614.12,0.00020456,2]
[366747109,1750429840708,-460.0,0.00020456,2]
[366747110,1750429840717,-460.0,0.00020456,2]
[366747112,1750429840727,-353.84541855,0.00020456,2]
[366747114,1750429840737,-460.0,0.00020456,2]
[366747116,1750429840747,-1164.65,0.00020456,2]
[366747118,1750429840757,-460.0,0.00020456,2]
[366747120,1750429840767,-523.38,0.00020456,2]
[366747122,1750429840777,-460.0,0.00020456,2]
[366747124,1750429840786,-1017.86,0.00020456,2]
[366747126,1750429840796,-460.0,0.00020456,2]
[366747128,1750429840806,-460.0,0.00020456,2]
[366747130,1750429840816,-460.0,0.00020456,2]
[366747133,1750429840826,-460.0,0.00020456,2]
[366747135,1750429840836,-578.08744762,0.00020456,2]
[366747136,1750429840845,-991.02,0.00020456,2]
[366747138,1750429840855,-460.0,0.00020456,2]
[366747140,1750429840864,-460.0,0.00020456,2]
[366747142,1750429840874,-1052.02,0.00020456,2]
[366747144,1750429840883,-2439.66,0.00020456,2]
[366747146,1750429840893,-659.99,0.00020456,2]
[366747148,1750429840903,-460.0,0.00020456,2]
[366747150,1750429840914,-460.0,0.00020456,2]
[366747152,1750429840923,-771.21,0.00020456,2]
[366747154,1750429840932,-791.27,0.00020456,2]
[366747156,1750429840942,-407.46870541,0.00020456,2]
[366747158,1750429840952,-817.46,0.00020456,2]
[366747160,1750429840961,-460.0,0.00020457,2]
[366747162,1750429840970,-460.0,0.00020457,2]
[366747164,1750429840980,-525.65029213,0.00020457,2]
[366747166,1750429840989,-460.0,0.00020457,2]
[366747168,1750429840999,-460.0,0.00020457,2]
[366747170,1750429841008,-460.0,0.00020458,2]
[366747172,1750429841017,-460.0,0.00020458,2]
[366747174,1750429841027,-546.7,0.00020458,2]
[366747176,1750429841035,-460.0,0.00020458,2]
[366747178,1750429841046,-1089.0,0.00020529,2]
[366747180,1750429841055,-500.0,0.00020547,7]
[366747182,1750429841065,-332.465,0.00020587,2]
[366747184,1750429841074,-500.0,0.00020628,2]
[366747186,1750429841083,-189.06396909,0.00020628,2]
[366747188,1750429841093,-504.43893691,0.00020628,2]
[366747190,1750429841102,-500.0,0.00020628,2]
[366747192,1750429841112,-500.0,0.00020628,2]
[366747194,1750429841122,-500.0,0.00020628,2]
[366747196,1750429841132,-500.0,0.00020628,2]
[366747198,1750429841142,-500.0,0.00020628,2]
[366747200,1750429841151,-846.08887863,0.00020643,2]
[366747202,1750429841161,-424.85694595,0.00020643,2]
[366747204,1750429841170,-213.51557418,0.00020643,2]
[366747206,1750429841180,-160.0,0.00020643,2]
[366747208,1750429841190,-160.0,0.00020643,2]
[366747210,1750429841199,-12546.90244252,0.00020643,2]
[366747213,1750429841210,-160.0,0.00020643,2]
[366747214,1750429841219,-230.06456406,0.00020643,2]
[366747216,1750429841231,-523.92420239,0.00020643,2]
[366747218,1750429841241,-160.0,0.00020643,2]
[366747220,1750429841251,-160.0,0.00020643,2]
[366747222,1750429841260,-836.27303475,0.00020643,2]
[366747224,1750429841270,-160.0,0.00020643,2]
[366747227,1750429841281,-160.0,0.00020643,2]
[366747229,1750429841290,-502.12046784,0.00020648,2]
[366747231,1750429841300,-506.31573007,0.00020648,2]
[366747232,1750429841311,-500.0,0.00020648,2]
[366747235,1750429841322,-500.0,0.00020648,2]
[366747237,1750429841332,-466.62569874,0.00020648,2]
[366747238,1750429841341,-216.63220793,0.00020648,2]
[366747241,1750429841351,-179.65666993,0.00020648,2]
[366747243,1750429841361,-306.03282112,0.00020691,2]
[366747244,1750429841371,-300.0,0.00020697,2]
[366747246,1750429841380,-460.0,0.00020721,2]
[366747248,1750429841390,-460.0,0.00020721,2]
[366747250,1750429841399,-460.0,0.00020726,2]
[366747252,1750429841411,-460.0,0.00020726,2]
[366747255,1750429841421,-967.12,0.00020726,2]
[366747257,1750429841431,-460.0,0.00020726,2]
[366747258,1750429841441,-1741.32,0.00020726,2]
[366747261,1750429841451,-758.37,0.00020726,2]
[366747263,1750429841462,-488.48,0.00020726,2]
[366747265,1750429841471,-460.0,0.00020726,2]
[366747267,1750429841482,-460.0,0.00020726,2]
[366747269,1750429841492,-460.0,0.00020726,2]
[366747271,1750429841501,-1644.58,0.00020726,2]
[366747273,1750429841511,-1989.5,0.00020726,2]
[366747275,1750429841521,-2156.01,0.00020726,2]
[366747276,1750429841531,-1022.81,0.00020726,2]
[366747278,1750429841541,-926.76,0.00020726,2]
[366747280,1750429841551,-460.0,0.00020727,2]
[366747282,1750429841561,-983.24,0.00020727,2]
[366747285,1750429841571,-460.0,0.00020727,2]
[366747287,1750429841581,-460.0,0.00020727,2]
[366747289,1750429841591,-460.0,0.00020727,2]
[366747291,1750429841601,-2054.75,0.00020727,2]
[366747293,1750429841611,-2983.54,0.00020728,2]
[366747295,1750429841621,-460.0,0.00020728,2]
[366747297,1750429841631,-460.0,0.00020728,2]
[366747299,1750429841640,-533.14,0.00020728,2]
[366747301,1750429841650,-460.0,0.00020728,2]
[366747303,1750429841661,-460.0,0.00020728,2]
[366747315,1750429841841,-734.26,0.00020728,2]
[366747316,1750429841851,-460.0,0.00020728,2]
[366747317,1750429841861,-460.0,0.00020728,2]
[366747318,1750429841870,-460.0,0.00020728,2]
[366747319,1750429841880,-794.56,0.00020728,2]
[366747320,1750429841890,-460.0,0.00020728,2]
[366747321,1750429841900,-460.0,0.00020728,2]
[366747322,1750429841910,-460.0,0.00020728,2]
[366747323,1750429841920,-699.95,0.00020728,2]
[366747324,1750429841930,-460.0,0.00020729,2]
[366747325,1750429841940,-460.0,0.00020729,2]
[366747326,1750429841950,-460.0,0.00020729,2]
[366747327,1750429841960,-405.24877253,0.00020729,2]
[366747328,1750429841970,-460.0,0.00020729,2]
[366747329,1750429841979,-460.0,0.00020729,2]
[366747330,1750429841989,-460.0,0.00020729,2]
[366747331,1750429841998,-460.0,0.00020729,2]
[366747332,1750429842008,-460.0,0.00020729,2]
[366747333,1750429842018,-1131.52,0.00020729,2]
[366747334,1750429842028,-460.0,0.00020729,2]
[366747335,1750429842038,-460.0,0.00020729,2]
[366747336,1750429842047,-460.0,0.00020729,2]
[366747337,1750429842057,-460.0,0.00020729,2]
[366747339,1750429842067,-460.0,0.00020729,2]
[366747340,1750429842076,-460.0,0.00020729,2]
[366747341,1750429842086,-591.01640458,0.00020729,2]
[366747342,1750429842095,-614.12,0.0002073,2]
[366747343,1750429842105,-460.0,0.0002073,2]
[366747344,1750429842115,-460.0,0.0002073,2]
[366747345,1750429842124,-460.0,0.0002073,2]
[366747346,1750429842134,-1164.65,0.0002073,2]
[366747347,1750429842144,-460.0,0.0002073,2]
[366747348,1750429842154,-523.38,0.0002073,2]
[366747349,1750429842163,-460.0,0.0002073,2]
[366747350,1750429842173,-1017.86,0.0002073,2]
[366747351,1750429842182,-460.0,0.0002073,2]
[366747352,1750429842192,-460.0,0.0002073,2]
[366747353,1750429842202,-460.0,0.0002073,2]
[366747354,1750429842212,-460.0,0.0002073,2]
[366747355,1750429842222,-991.02,0.0002073,2]
[366747356,1750429842236,-460.0,0.0002073,2]
[366747357,1750429842246,-460.0,0.0002073,2]
[366747358,1750429842256,-1052.02,0.0002073,2]
[366747359,1750429842267,-2439.66,0.0002073,2]
[366747360,1750429842277,-659.99,0.0002073,2]
[366747361,1750429842287,-460.0,0.0002073,2]
[366747362,1750429842297,-460.0,0.0002073,2]
[366747363,1750429842308,-771.21,0.0002073,2]
[366747364,1750429842317,-791.27,0.0002073,2]
[366747365,1750429842328,-817.46,0.0002073,2]
[366747366,1750429842338,-460.0,0.00020731,2]
[366747367,1750429842348,-460.0,0.00020731,2]
[366747368,1750429842358,-460.0,0.00020731,2]
[366747369,1750429842368,-460.0,0.00020731,2]
[366747371,1750429842379,-436.40031596,0.00020732,2]
[366747372,1750429842390,-460.0,0.00020732,2]
[366747373,1750429842401,-546.7,0.00020732,2]
[366747374,1750429842411,-460.0,0.00020732,2]
[366747375,1750429842421,-196.57013889,0.00020779,2]
[366747376,1750429842432,-460.0,0.00020995,2]
[366747377,1750429842442,-460.0,0.00020995,2]
[366747378,1750429842452,-306.03282112,0.00020995,2]
[366747379,1750429842462,-460.0,0.00021,2]
[366747380,1750429842472,-460.0,0.00021,2]
[366747381,1750429842481,-967.12,0.00021,2]
[366747383,1750429842491,-327.83147063,0.00021,2]
[366747385,1750429842501,-1741.32,0.00021,2]
[366747386,1750429842512,-758.37,0.00021,2]
[366747387,1750429842522,-488.48,0.00021,2]
[366747388,1750429842531,-460.0,0.00021,2]
[366747389,1750429842541,-460.0,0.00021,2]
[366747390,1750429842550,-1644.58,0.00021,2]
[366747391,1750429842559,-1989.5,0.00021,2]
[366747392,1750429842570,-2156.01,0.00021,2]
[366747393,1750429842580,-1022.81,0.00021,2]
[366747394,1750429842590,-926.76,0.00021,2]
[366747395,1750429842599,-460.0,0.00021001,2]
[366747396,1750429842610,-983.24,0.00021001,2]
[366747397,1750429842620,-415.10940964,0.00021001,2]
[366747398,1750429842630,-460.0,0.00021001,2]
[366747399,1750429842639,-460.0,0.00021001,2]
[366747400,1750429842649,-2054.75,0.00021001,2]
[366747401,1750429842660,-2983.54,0.00021002,2]
[366747402,1750429842669,-460.0,0.00021002,2]
[366747403,1750429842679,-460.0,0.00021002,2]
[366747404,1750429842689,-533.14,0.00021002,2]
[366747405,1750429842698,-460.0,0.00021002,2]
[366747406,1750429842709,-460.0,0.00021002,2]
[366747407,1750429842718,-734.26,0.00021002,2]
[366747408,1750429842728,-460.0,0.00021002,2]
[366747409,1750429842738,-460.0,0.00021002,2]
[366747410,1750429842748,-460.0,0.00021002,2]
[366747411,1750429842758,-794.56,0.00021002,2]
[366747412,1750429842768,-460.0,0.00021002,2]
[366747413,1750429842778,-460.0,0.00021002,2]
[366747414,1750429842789,-460.0,0.00021002,2]
[366747415,1750429842799,-699.95,0.00021002,2]
[366747416,1750429842809,-460.0,0.00021003,2]
[366747417,1750429842818,-460.0,0.00021003,2]
[366747418,1750429842828,-460.0,0.00021003,2]
[366747419,1750429842838,-460.0,0.00021003,2]
[366747420,1750429842847,-460.0,0.00021003,2]
[366747421,1750429842857,-460.0,0.00021003,2]
[366747422,1750429842868,-460.0,0.00021003,2]
[366747423,1750429842878,-1131.52,0.00021003,2]
[366747424,1750429842888,-460.0,0.00021003,2]
[366747425,1750429842898,-460.0,0.00021003,2]
[366747426,1750429842908,-460.0,0.00021003,2]
[366747427,1750429842919,-460.0,0.00021003,2]
[366747428,1750429842930,-460.0,0.00021003,2]
[366747429,1750429842940,-460.0,0.00021003,2]
[366747430,1750429842950,-614.12,0.00021004,2]
[366747431,1750429842960,-460.0,0.00021004,2]
[366747432,1750429842970,-460.0,0.00021004,2]
[366747433,1750429842980,-460.0,0.00021004,2]
[366747434,1750429842991,-1164.65,0.00021004,2]
[366747435,1750429843001,-460.0,0.00021004,2]
[366747436,1750429843010,-523.38,0.00021004,2]
[366747437,1750429843020,-460.0,0.00021004,2]
[366747438,1750429843031,-1017.86,0.00021004,2]
[366747439,1750429843040,-460.0,0.00021004,2]
[366747440,1750429843050,-460.0,0.00021004,2]
[366747441,1750429843060,-460.0,0.00021004,2]
[366747442,1750429843070,-460.0,0.00021004,2]
[366747443,1750429843079,-991.02,0.00021004,2]
[366747444,1750429843089,-460.0,0.00021004,2]
[366747445,1750429843098,-460.0,0.00021004,2]
[366747446,1750429843108,-1052.02,0.00021004,2]
[366747447,1750429843117,-2439.66,0.00021004,2]
[366747448,1750429843127,-659.99,0.00021004,2]
[366747449,1750429843136,-460.0,0.00021004,2]
[366747450,1750429843146,-460.0,0.00021004,2]
[366747451,1750429843156,-771.21,0.00021004,2]
[366747452,1750429843167,-791.27,0.00021004,2]
[366747453,1750429843177,-817.46,0.00021004,2]
[366747454,1750429843187,-460.0,0.00021005,2]
[366747455,1750429843196,-542.09,0.00021005,2]
[366747456,1750429843206,-460.0,0.00021005,2]
[366747457,1750429843215,-460.0,0.00021005,2]
[366747458,1750429843225,-460.0,0.00021006,2]
[366747459,1750429843239,-546.7,0.00021006,2]
[366747460,1750429843250,-460.0,0.00021006,2]
[366747461,1750429843260,-354.1047926,0.00021014,2]
[366747462,1750429843270,-320.594912,0.00021014,2]
[366747463,1750429843280,-1147.8937984,0.00021014,2]
[366747464,1750429843289,-500.0,0.00021095,8]
[366747465,1750429843298,-168.0,0.00021105,2]
[366747466,1750429843309,-160.0,0.00021121,3]
[366747467,1750429843320,-374.32370989,0.00021176,2]
[366747468,1750429843330,-500.0,0.00021176,2]
[366747469,1750429843340,-1000.0,0.00021176,2]
[366747470,1750429843351,-1000.0,0.00021176,2]
[366747471,1750429843360,-507.57878241,0.00021176,2]
[366747472,1750429843370,-500.0,0.00021176,2]
[366747473,1750429843380,-1000.0,0.00021196,2]
[366747474,1750429843389,-503.4130077,0.00021196,2]
[366747475,1750429843398,-1256.601333,0.00021197,4]
[366747476,1750429843408,-168.0,0.00021223,2]
[366747477,1750429843419,-460.0,0.00021269,2]
[366747478,1750429843430,-460.0,0.00021269,2]
[366747479,1750429843440,-460.0,0.00021274,2]
[366747480,1750429843450,-460.0,0.00021274,2]
[366747481,1750429843459,-967.12,0.00021274,2]
[366747482,1750429843469,-1741.32,0.00021274,2]
[366747483,1750429843479,-758.37,0.00021274,2]
[366747484,1750429843489,-488.48,0.00021274,2]
[366747485,1750429843499,-460.0,0.00021274,2]
[366747486,1750429843508,-286.8,0.00021274,2]
[366747487,1750429843518,-1644.58,0.00021274,2]
[366747488,1750429843528,-1989.5,0.00021274,2]
[366747489,1750429843538,-2156.01,0.00021274,2]
[366747490,1750429843548,-1022.81,0.00021274,2]
[366747491,1750429843557,-926.76,0.00021274,2]
[366747492,1750429843566,-460.0,0.00021275,2]
[366747493,1750429843576,-983.24,0.00021275,2]
[366747494,1750429843586,-460.0,0.00021275,2]
[366747495,1750429843596,-460.0,0.00021275,2]
[366747496,1750429843607,-2054.75,0.00021275,2]
[366747497,1750429843616,-2983.54,0.00021276,2]
[366747498,1750429843626,-460.0,0.00021276,2]
[366747499,1750429843635,-460.0,0.00021276,2]
[366747500,1750429843645,-533.14,0.00021276,2]
[366747501,1750429843655,-460.0,0.00021276,2]
[366747502,1750429843666,-460.0,0.00021276,2]
[366747503,1750429843676,-734.26,0.00021276,2]
[366747504,1750429843686,-460.0,0.00021276,2]
[366747505,1750429843696,-460.0,0.00021276,2]
[366747506,1750429843706,-460.0,0.00021276,2]
[366747507,1750429843716,-794.56,0.00021276,2]
[366747508,1750429843727,-460.0,0.00021276,2]
[366747509,1750429843737,-460.0,0.00021276,2]
[366747510,1750429843747,-460.0,0.00021276,2]
[366747511,1750429843756,-699.95,0.00021276,2]
[366747512,1750429843766,-171.88158986,0.00021277,2]
[366747513,1750429843776,-460.0,0.00021277,2]
[366747514,1750429843786,-460.0,0.00021277,2]
[366747515,1750429843796,-460.0,0.00021277,2]
[366747516,1750429843807,-387.21,0.00021277,2]
[366747517,1750429843817,-460.0,0.00021277,2]
[366747518,1750429843827,-460.0,0.00021277,2]
[366747519,1750429843836,-1131.52,0.00021277,2]
[366747520,1750429843846,-460.0,0.00021277,2]
[366747521,1750429843855,-460.0,0.00021277,2]
[366747522,1750429843865,-460.0,0.00021277,2]
[366747523,1750429843874,-460.0,0.00021277,2]
[366747524,1750429843884,-460.0,0.00021277,2]
[366747525,1750429843893,-460.0,0.00021277,2]
[366747526,1750429843903,-614.12,0.00021278,2]
[366747527,1750429843913,-460.0,0.00021278,2]
[366747528,1750429843922,-460.0,0.00021278,2]
[366747529,1750429843932,-460.0,0.00021278,2]
[366747530,1750429843941,-1164.65,0.00021278,2]
[366747531,1750429843951,-216.36469587,0.00021278,2]
[366747532,1750429843961,-523.38,0.00021278,2]
[366747533,1750429843970,-460.0,0.00021278,2]
[366747534,1750429843980,-1017.86,0.00021278,2]
[366747535,1750429843989,-460.0,0.00021278,2]
[366747536,1750429843999,-460.0,0.00021278,2]
[366747537,1750429844009,-460.0,0.00021278,2]
[366747538,1750429844019,-460.0,0.00021278,2]
[366747539,1750429844029,-991.02,0.00021278,2]
[366747540,1750429844038,-460.0,0.00021278,2]
[366747541,1750429844048,-460.0,0.00021278,2]
[366747542,1750429844058,-1052.02,0.00021278,2]
[366747543,1750429844068,-2439.66,0.00021278,2]
[366747544,1750429844080,-659.99,0.00021278,2]
[366747545,1750429844090,-460.0,0.00021278,2]
[366747546,1750429844100,-460.0,0.00021278,2]
[366747547,1750429844110,-771.21,0.00021278,2]
[366747548,1750429844120,-791.27,0.00021278,2]
[366747549,1750429844131,-817.46,0.00021278,2]
[366747550,1750429844141,-460.0,0.00021279,2]
[366747551,1750429844150,-460.0,0.00021279,2]
[366747552,1750429844161,-235.88008586,0.00021279,2]
[366747553,1750429844171,-460.0,0.0002128,2]
[366747554,1750429844181,-546.7,0.0002128,2]
[366747555,1750429844191,-460.0,0.0002128,2]
[366747556,1750429844201,-151.0,0.00021295,2]
[366747557,1750429844210,-306.03282112,0.000213,2]
[366747558,1750429844220,-508.6551966,0.00021341,2]
[366747559,1750429844233,-151.0,0.00021349,2]
[366747561,1750429844243,-151.0,0.00021368,2]
[366747563,1750429844252,-500.0,0.00021387,2]
[366747565,1750429844262,-500.0,0.00021387,2]
[366747567,1750429844271,-151.0,0.000214,2]
[366747569,1750429844282,-151.0,0.000214,3]
[366747571,1750429844292,-4945.38671844,0.000214,5]
[366747573,1750429844301,-4945.38671839,0.000214,5]
[366747574,1750429844311,-4945.38671839,0.000214,5]
[366747576,1750429844321,-168.0,0.00021405,2]
[366747578,1750429844330,-179.49466331,0.00021415,2]
[366747580,1750429844340,-4945.38671839,0.00021417,5]
[366747581,1750429844349,-196.57013889,0.00021483,2]
[366747583,1750429844359,-415228.51216876,0.00021499,2]
[366747599,1750429844913,381.4537524,0.000201,2]
[366747602,1750429844957,3505.35824729,0.000201,2]
[366747611,1750429845964,-460.0,0.00020173,2]
[366747612,1750429845975,-2592.71,0.00020178,2]
[366747613,1750429845984,-460.0,0.00020179,2]
[366747614,1750429845995,-507.64,0.00020447,2]
[366747615,1750429846007,-530.63,0.00020453,2]
[366747616,1750429846016,-1445.81,0.00021489,10]
[366747617,1750429846027,-35920.08760505,0.00021499,2]
[366747618,1750429848731,200.0,0.0002,2]
[366747619,1750429949905,262.27227369,0.00020081,2]
[366747620,1750429963373,168.0,0.00019562,2]
[366747621,1750429965607,168.0,0.00019862,2]
[366747623,1750430025825,-300.0,0.00020171,2]
[366747624,1750430025851,-300.0,0.00020171,2]
[366747625,1750430025874,-460.0,0.00020172,2]
[366747626,1750430025898,-46.19,0.00020172,2]
[366747627,1750430028891,3038.41601567,0.000201,2]
[366747628,1750430057129,2657.95346335,0.0001918,2]
[366747629,1750430057165,10000.0,0.0001918,2]
[366747630,1750430057199,10000.0,0.0001918,2]
[366747631,1750430076281,-187.73860198,0.0001918,2]
[366747633,1750430091689,187.73860198,0.000191,2]
[366747634,1750430101870,-176.0325545,0.0001918,2]
[366747635,1750430105573,-157.74935064,0.0001918,2]
[366747637,1750430113044,-208.88234658,0.0001918,2]
[366747638,1750430124022,-200.0,0.0001918,2]
[366747639,1750430129426,-160.0,0.0001918,2]
[366747640,1750430139080,-189.0,0.0001918,2]
[366747641,1750430141144,-962.64368295,0.0001918,2]
[366747642,1750430143296,-187.63977482,0.00019772,2]
[366747643,1750430145084,160.0,0.0001918,2]
[366747644,1750430145879,-116.66191563,0.00019772,2]
[366747645,1750430146111,-156.60765153,0.0002,5]
[366747646,1750430146136,-7.89341325,0.00020171,2]
[366747647,1750430151407,-160.50453518,0.00020171,2]
[366747649,1750430159397,-269.32287359,0.00020073,2]
[366747650,1750430162481,-82.14190721,0.00020073,2]
[366747651,1750430162507,-78.22460124,0.00020171,2]
[366747652,1750430222044,-164.71053958,0.00020171,2]
[366747654,1750430282932,-203.240846,0.00020171,2]
[366747659,1750430315806,-200.31390646,0.00020171,2]
[366747661,1750430341976,-249.08105071,0.00020171,2]
[366747663,1750430365985,-215.37604799,0.00020073,2]
[366747664,1750430373275,-285.2,0.00020072,2]
[366747665,1750430385356,-22.3316832,0.00020072,2]
[366747666,1750430385380,-144.3753147,0.00020073,2]
[366747668,1750430401849,-168.0,0.0001988,2]
[366747669,1750430401871,-132.0,0.0002005,2]
[366747671,1750430418031,253.542209,0.00013699,2]
[366747672,1750430433194,-150.0,0.0001956,2]
[366747673,1750430504548,-49.58338588,0.0001956,2]
[366747674,1750430504574,-100.41661412,0.0001999,2]
[366747676,1750430524838,-168.76597768,0.00019989,2]
[366747677,1750430540739,-157.43,0.00020155,3]
[366747678,1750430540763,-112.74652984,0.00020155,3]
[366747679,1750430556591,-131.23402232,0.00019989,2]
[366747680,1750430556615,-21.76597768,0.00019989,2]
[366747681,1750430561805,-215.0,0.00019989,2]
[366747682,1750430571909,-176.24964483,0.00019989,2]
[366747683,1750430571934,-38.75035517,0.00019989,2]
[366747684,1750430572464,-215.0,0.00019989,2]
[366747685,1750430611253,-269.0902228,0.0001995,2]
[366747686,1750430611279,-30.9097772,0.00019989,2]
[366747687,1750430616644,-215.33986763,0.00019989,2]
[366747688,1750430616667,-73.47163255,0.00019989,2]
[366747690,1750430637715,-230.70562783,0.00019989,2]
[366747691,1750430643610,-212.95019361,0.00019988,2]
[366747692,1750430653235,-87.04980639,0.00019988,2]
[366747693,1750430653258,-76.77239716,0.00019989,2]
[366747694,1750430663861,-163.82220355,0.00019147,2]
[366747695,1750430670420,-48.97437425,0.00019147,2]
[366747696,1750430670446,-101.02562575,0.00019989,2]
[366747697,1750430674693,-18.02471671,0.00019989,2]
[366747698,1750430674718,-146.76934486,0.00019989,2]
[366747699,1750430681786,-163.74806093,0.00019989,2]
[366747700,1750430687204,-189.48259421,0.00019989,2]
[366747701,1750430687229,-10.51740579,0.00019989,2]
[366747702,1750430708946,-300.0,0.0001995,2]
[366747703,1750430711582,-179.668474,0.00019178,2]
[366747704,1750430711606,-120.331526,0.0001995,2]
[366747705,1750430759791,-151.51287699,0.0001995,2]
[366747706,1750430795445,-190.84605584,0.0001995,2]
[366747709,1750430823721,-182.4150196,0.0001995,2]
[366747710,1750430828266,-167.31909194,0.00019889,2]
[366747711,1750430839990,-68.13485301,0.00019889,2]
[366747712,1750430840014,-149.70417568,0.0001995,2]
[366747715,1750430882686,-176.53546728,0.0001995,2]
[366747716,1750430882710,-110.46453272,0.00019988,2]
[366747717,1750430898777,-160.0,0.00019987,2]
[366747718,1750430904307,-140.0,0.00019987,2]
[366747719,1750430904335,-24.71053958,0.00019988,2]
[366747720,1750430907824,-154.0,0.00019988,2]
[366747721,1750430911889,-10.8249277,0.00019988,2]
[366747722,1750430911912,-298.32901646,0.00019988,2]
[366747723,1750430921832,-1.67098354,0.00019988,2]
[366747724,1750430921857,-257.93901646,0.00019988,2]
[366747725,1750430925762,-202.69938057,0.00019988,2]
[366747726,1750430933223,-165.1568582,0.00019988,2]
[366747728,1750430943672,-155.0,0.00019987,2]
[366747729,1750430952553,-145.0,0.00019987,2]
[366747730,1750430952578,-80.78061984,0.00019988,2]
[366747731,1750430953034,565.1819367,0.00019004,2]
[366747732,1750430964537,-151.16903462,0.00019988,2]